bitfinex/quotes_ETHUSD_20230116
["timestamp","ask_amount","ask_price","bid_price","bid_amount"]
[1673861818894,7.96242,1545.5,1545.1,0.0003951]
[1673861819217,14.43946,1545.3,1545.1,0.0003951]
[1673861819827,8.97165,1545.2,1545.1,0.0003951]
[1673861820075,15.4433,1545.2,1545.1,0.0003951]
[1673861820660,2.5,1545.2,1545.1,0.0003951]
[1673861821916,2.5,1545.2,1545.1,1.0923951]
[1673861822294,2.5,1545.2,1545.1,1.3223951]
[1673861822971,2.5,1545.2,1545.1,0.2303951]
[1673861823176,2.5,1545.2,1545.1,0.0003951]
[1673861824232,3.0,1545.2,1545.1,0.0003951]
[1673861826597,4.9897,1545.2,1545.1,0.0003951]
[1673861827962,24.33540774,1545.2,1545.1,0.0003951]
[1673861828129,30.88123335,1545.2,1545.1,0.0003951]
[1673861828485,40.65701013,1545.2,1545.0,0.00024757]
[1673861828655,6.47257,1545.0,1544.7,0.03586052]
[1673861828864,8.91552437,1544.9,1544.7,0.00086052]
[1673861829102,1.504,1544.8,1544.7,0.00086052]
[1673861829426,14.93644,1544.8,1544.7,0.00086052]
[1673861829598,1.497,1544.7,1544.3,0.00082384]
[1673861829811,4.1467,1544.6,1544.3,0.00082384]
[1673861830373,1.496,1544.4,1544.3,0.00082384]
[1673861832744,0.4859,1544.5,1544.3,20.14159972]
[1673861832952,2.5,1544.6,1544.3,20.14159972]
[1673861833204,2.5,1544.6,1544.4,3.0]
[1673861833415,2.5,1544.6,1544.5,12.94916]
[1673861835611,2.5,1544.6,1544.5,6.47458]
[1673861836962,2.5,1544.6,1544.4,15.94947]
[1673861838470,2.5,1544.6,1544.4,9.47468]
[1673861838775,2.5,1544.6,1544.4,6.47468]
[1673861838989,3.1497,1544.6,1544.4,6.47468]
[1673861839150,2.5,1544.6,1544.4,12.94968]
[1673861840302,2.5,1544.6,1544.3,7.19052972]
[1673861843387,2.5,1544.6,1544.3,13.66594972]
[1673861845258,2.5,1544.6,1544.3,7.19052972]
[1673861845649,6.7247,1544.5,1544.1,6.47605]
[1673861845767,8.2287,1544.5,1544.1,6.47605]
[1673861845979,14.7034,1544.5,1544.0,13.00307125]
[1673861846327,1.504,1544.3,1544.0,6.52658125]
[1673861846520,4.850501,1544.3,1544.0,6.52658125]
[1673861848340,5.336501,1544.3,1544.0,0.05009125]
[1673861848528,4.850501,1544.3,1544.0,0.05009125]
[1673861848745,4.850501,1544.3,1544.0,6.52675125]
[1673861850294,4.850501,1544.3,1544.0,13.00343125]
[1673861851074,4.004,1544.3,1544.0,19.48011125]
[1673861852113,2.5,1544.3,1544.0,19.48011125]
[1673861852499,2.5,1544.3,1544.2,6.47584]
[1673861853159,2.5,1544.3,1544.1,6.70602]
[1673861854406,3.996,1544.3,1544.0,13.00292125]
[1673861854616,4.69419,1544.3,1544.0,13.00292125]
[1673861855873,4.69419,1544.3,1544.0,6.52645125]
[1673861857466,3.19819,1544.3,1544.0,19.47981125]
[1673861857643,2.5,1544.3,1544.0,19.47981125]
[1673861857854,3.996,1544.3,1544.0,6.52677125]
[1673861858848,3.996,1544.3,1544.0,19.48013125]
[1673861858849,2.5,1544.3,1544.0,19.48013125]
[1673861860863,2.5,1544.3,1544.0,20.83249744]
[1673861862479,2.5,1544.3,1544.1,0.23]
[1673861862837,2.5,1544.3,1544.2,12.95168]
[1673861862997,2.5,1544.3,1544.2,13.18168]
[1673861864688,2.5,1544.3,1544.1,12.95192]
[1673861865638,3.0,1544.3,1544.0,27.76313744]
[1673861865858,3.0,1544.3,1544.1,0.23]
[1673861866675,3.0,1544.3,1544.0,39.36336125]
[1673861867097,3.0,1544.3,1544.0,26.41048125]
[1673861867306,0.3,1544.2,1544.0,26.41048125]
[1673861867540,2.5,1544.3,1544.0,32.88716125]
[1673861867773,2.5,1544.3,1544.0,39.36384125]
[1673861868355,2.49781925,1544.3,1544.0,39.36384125]
[1673861868568,2.49781925,1544.3,1544.1,15.95209]
[1673861872050,2.49781925,1544.3,1544.1,22.42835]
[1673861872280,2.49781925,1544.3,1544.2,2.242835]
[1673861872486,2.49781925,1544.3,1544.2,19.42752]
[1673861872699,2.49781925,1544.3,1544.2,22.42752]
[1673861873395,2.49781925,1544.3,1544.2,22.65752]
[1673861874503,2.5,1544.4,1544.2,22.65752]
[1673861874700,2.5,1544.4,1544.3,22.42626]
[1673861875377,2.5,1544.4,1544.3,22.65626]
[1673861877218,2.5,1544.4,1544.3,24.921886]
[1673861878484,2.5,1544.5,1544.3,24.921886]
[1673861878700,12.5025,1544.6,1544.3,24.921886]
[1673861878901,12.5025,1544.6,1544.5,12.94916]
[1673861879106,2.5,1544.6,1544.5,12.94916]
[1673861883337,2.5,1544.6,1544.5,19.42374]
[1673861883539,2.5,1544.6,1544.5,21.389114]
[1673861883986,2.5,1544.6,1544.5,24.619114]
[1673861885627,2.5,1544.8,1544.5,26.118114]
[1673861886008,2.5,1544.8,1544.7,19.42122]
[1673861886147,2.5,1544.9,1544.7,19.42122]
[1673861886527,2.5,1544.9,1544.7,21.386342]
[1673861887418,2.5,1544.9,1544.7,22.686342]
[1673861887778,2.5,1544.9,1544.7,20.72122]
[1673861889451,2.49645602,1544.9,1544.7,20.72122]
[1673861892525,2.49645602,1544.9,1544.7,20.71736694]
[1673861899192,2.49645602,1544.9,1544.7,1.3]
[1673861900465,8.96948602,1544.9,1544.7,1.3]
[1673861900681,0.8969486,1544.8,1544.7,1.3]
[1673861902886,2.49645602,1544.9,1544.7,1.3]
[1673861902887,2.49645602,1544.9,1544.7,14.24748]
[1673861903288,2.49645602,1544.9,1544.7,20.72122]
[1673861904472,2.49645602,1544.9,1544.7,14.24748]
[1673861907322,2.49645602,1544.9,1544.7,1.3]
[1673861907509,2.98225602,1544.9,1544.7,1.3]
[1673861907720,1.3422256,1544.8,1544.7,1.3]
[1673861908186,1.3422256,1544.8,1544.3,30.39766]
[1673861908187,15.7928656,1544.8,1544.3,30.39766]
[1673861908381,6.95966,1544.7,1544.3,23.92243]
[1673861908778,6.95966,1544.7,1544.2,6.47544]
[1673861908991,16.83386,1544.7,1544.2,6.47544]
[1673861909240,1.683386,1544.6,1544.2,6.47544]
[1673861909616,1.683386,1544.6,1544.2,12.95128]
[1673861910285,1.683386,1544.6,1544.2,19.42712]
[1673861912675,1.683386,1544.6,1544.5,0.0068971]
[1673861915820,1.683386,1544.6,1544.5,6.4814771]
[1673861917023,1.683386,1544.6,1544.5,0.0068971]
[1673861917181,19.40049278,1544.6,1544.5,0.0008971]
[1673861917392,19.43183278,1544.6,1544.5,0.0008971]
[1673861917616,25.90599278,1544.6,1544.5,0.0008971]
[1673861917827,6.96941278,1544.6,1544.5,0.0008971]
[1673861918759,13.44357278,1544.6,1544.5,0.0008971]
[1673861919125,19.91773278,1544.6,1544.5,0.0008971]
[1673861919298,26.39189278,1544.6,1544.5,0.0008971]
[1673861919515,28.89189278,1544.6,1544.5,0.0008971]
[1673861919720,15.94357278,1544.6,1544.5,0.0008971]
[1673861920121,6.196626,1544.6,1544.5,0.0008971]
[1673861921073,12.670786,1544.6,1544.5,0.0008971]
[1673861922361,6.196626,1544.6,1544.5,0.0008971]
[1673861925143,9.46941278,1544.6,1544.5,0.0008971]
[1673861925300,22.41773278,1544.6,1544.5,0.0008971]
[1673861925509,9.46941278,1544.6,1544.5,0.0008971]
[1673861925718,22.815126,1544.6,1544.5,0.0008971]
[1673861925946,6.196626,1544.6,1544.5,0.0008971]
[1673861928052,4.700626,1544.6,1544.5,0.0008971]
[1673861929151,7.97341278,1544.6,1544.5,0.0008971]
[1673861929661,9.47041278,1544.6,1544.5,0.0008971]
[1673861930890,15.94457278,1544.6,1544.5,0.0008971]
[1673861932267,28.89289278,1544.6,1544.5,0.0008971]
[1673861932911,22.41873278,1544.6,1544.5,0.0008971]
[1673861933283,9.47041278,1544.6,1544.5,0.0008971]
[1673861934683,6.197626,1544.6,1544.5,0.0008971]
[1673861934900,4.214726,1544.6,1544.5,0.0008971]
[1673861935129,7.48751278,1544.6,1544.5,0.0008971]
[1673861935304,4.214726,1544.6,1544.5,0.0008971]
[1673861935963,5.718726,1544.6,1544.5,0.0008971]
[1673861940104,5.71662938,1544.6,1544.5,0.0008971]
[1673861940670,5.71662938,1544.6,1544.5,6.4754771]
[1673861940936,2.53134,1544.6,1544.5,6.4754771]
[1673861941146,2.53134,1544.6,1544.5,19.4246371]
[1673861943400,2.53134,1544.6,1544.5,0.0008971]
[1673861943864,5.80412678,1544.6,1544.5,0.0008971]
[1673861944049,8.41975546,1544.6,1544.5,0.0008971]
[1673861949752,8.41975546,1544.6,1544.5,1.688e-05]
[1673861950158,23.09007546,1544.6,1544.5,1.688e-05]
[1673861950709,23.57597546,1544.6,1544.5,1.688e-05]
[1673861954019,15.60981546,1544.6,1544.5,1.688e-05]
[1673861954385,8.90565546,1544.6,1544.5,1.688e-05]
[1673861954577,2.53134,1544.6,1544.5,1.688e-05]
[1673861955945,2.53134,1544.6,1544.5,6.47459688]
[1673861958476,2.53134,1544.6,1544.5,12.94917688]
[1673861963161,0.03134,1544.6,1544.5,19.42375688]
[1673861963377,2.5,1544.8,1544.5,19.42375688]
[1673861963629,2.5,1544.8,1544.5,22.16399457]
[1673861965404,12.41885602,1544.9,1544.5,23.66799457]
[1673861965955,12.41885602,1544.9,1544.7,19.42122]
[1673861967056,2.49645602,1544.9,1544.7,19.42122]
[1673861969312,2.49645602,1544.9,1544.7,6.47374]
[1673861969629,2.49645602,1544.9,1544.7,12.94748]
[1673861969784,10.69327368,1544.9,1544.6,6.47403]
[1673861969990,9.73215766,1544.8,1544.5,1.688e-05]
[1673861970204,9.43137343,1544.7,1544.5,1.688e-05]
[1673861970414,1.07534,1544.6,1544.5,1.688e-05]
[1673861971053,11.49134,1544.6,1544.5,1.688e-05]
[1673861972028,13.99134,1544.6,1544.5,1.688e-05]
[1673861972358,25.46428678,1544.6,1544.5,1.688e-05]
[1673861972570,29.78902795,1544.6,1544.5,1.688e-05]
[1673861973726,41.67311883,1544.6,1544.5,1.688e-05]
[1673861973936,39.74908795,1544.6,1544.5,1.688e-05]
[1673861974617,26.80076795,1544.6,1544.5,1.688e-05]
[1673861975926,25.30476795,1544.6,1544.5,1.688e-05]
[1673861976511,31.77892795,1544.6,1544.5,1.688e-05]
[1673861979514,38.20695883,1544.6,1544.5,1.688e-05]
[1673861979812,33.28292795,1544.6,1544.5,1.688e-05]
[1673861981241,30.28292795,1544.6,1544.5,1.688e-05]
[1673861982119,36.75708795,1544.6,1544.5,1.688e-05]
[1673861982915,41.68111883,1544.6,1544.5,1.688e-05]
[1673861983338,36.75708795,1544.6,1544.5,1.688e-05]
[1673861983594,41.68111883,1544.6,1544.5,1.688e-05]
[1673861983806,48.15527883,1544.6,1544.5,1.688e-05]
[1673861985793,0.00220792,1544.5,1544.0,12.99649415]
[1673861986123,8.97502,1544.4,1544.0,12.99649415]
[1673861986295,1.504,1544.3,1544.0,6.51984415]
[1673861988306,1.504,1544.3,1544.0,0.04319415]
[1673861988519,16.17624766,1544.3,1544.0,0.04319415]
[1673861988737,1.504,1544.2,1544.0,0.04319415]
[1673861988924,6.31776777,1544.2,1544.0,0.04319415]
[1673861990717,4.81376777,1544.2,1544.0,0.04319415]
[1673861995384,2.5,1544.2,1544.0,0.04319415]
[1673861995555,2.5,1544.2,1544.0,6.51978415]
[1673861996514,2.5,1544.2,1544.0,0.04051915]
[1673861998536,8.97591,1544.2,1544.0,0.04051915]
[1673861999160,9.00725,1544.2,1544.0,0.04051915]
[1673861999495,0.900725,1544.1,1544.0,0.04051915]
[1673862000828,0.900725,1544.1,1544.0,0.00051915]
[1673862001778,7.376985,1544.1,1544.0,0.00051915]
[1673862015206,0.900725,1544.1,1544.0,0.00051915]
[1673862019090,2.53134,1544.2,1544.0,13.94587915]
[1673862019322,2.50220792,1544.5,1544.1,1.5]
[1673862019510,2.50220792,1544.5,1544.2,6.47571]
[1673862019776,2.50220792,1544.5,1544.2,12.95155]
[1673862020459,2.50220792,1544.5,1544.0,6.47719915]
[1673862020460,3.27278678,1544.4,1544.0,6.47719915]
[1673862020680,14.01872625,1544.4,1544.1,6.47618]
[1673862021195,10.74593947,1544.4,1544.1,6.47615]
[1673862021399,10.16844,1544.4,1544.1,6.47615]
[1673862022037,9.74824678,1544.3,1544.0,0.00051915]
[1673862022247,2.53134,1544.2,1544.0,0.00051915]
[1673862022822,12.27997678,1544.2,1544.0,0.00051915]
[1673862023157,1.22799768,1544.1,1544.0,0.00051915]
[1673862023378,5.80412678,1544.2,1544.0,0.00051915]
[1673862025050,12.28000678,1544.2,1544.0,0.00051915]
[1673862027028,12.76600678,1544.2,1544.0,0.00051915]
[1673862027237,12.28000678,1544.2,1544.0,0.00051915]
[1673862029357,2.53134,1544.2,1544.0,0.00051915]
[1673862029579,3.73062,1544.2,1544.0,0.00051915]
[1673862030670,3.72790842,1544.2,1544.0,0.00051915]
[1673862033035,7.0006952,1544.2,1544.0,0.00051915]
[1673862033210,13.4765452,1544.2,1544.0,0.00051915]
[1673862033426,13.9625452,1544.2,1544.0,0.00051915]
[1673862033680,1.39625452,1544.1,1544.0,0.00051915]
[1673862044881,24.7280452,1544.2,1544.0,0.00051915]
[1673862047111,31.2040852,1544.2,1544.0,0.00051915]
[1673862050439,32.7120852,1544.2,1544.0,0.00051915]
[1673862051065,44.11215608,1544.2,1544.0,0.00051915]
[1673862051415,39.1881252,1544.2,1544.0,0.00051915]
[1673862051752,10.39507252,1544.1,1544.0,0.00051915]
[1673862052773,0.00172455,1544.0,1543.7,22.94964397]
[1673862054225,21.15194221,1544.0,1543.7,0.06568397]
[1673862054441,6.47752,1543.8,1543.7,0.06568397]
[1673862055012,18.72782678,1543.8,1543.7,0.06568397]
[1673862055172,21.48182246,1543.8,1543.7,0.06568397]
[1673862056785,15.00430246,1543.8,1543.7,0.06568397]
[1673862059503,8.52678246,1543.8,1543.7,0.06568397]
[1673862059854,2.53134,1543.8,1543.7,1.05768397]
[1673862060037,0.03134,1543.8,1543.7,14.01356397]
[1673862065627,0.03134,1543.8,1543.7,13.02156397]
[1673862065817,0.03134,1543.8,1543.7,0.06568397]
[1673862066028,1.07534,1543.8,1543.7,0.06568397]
[1673862066655,0.03134,1543.8,1543.7,0.06568397]
[1673862067852,0.03134,1543.8,1543.7,0.04572397]
[1673862068169,28.86085166,1543.8,1543.6,0.05384546]
[1673862068377,10.21835766,1543.7,1543.6,0.00084546]
[1673862068685,29.65217766,1543.7,1543.6,0.00084546]
[1673862068896,39.82537766,1543.7,1543.6,0.00084546]
[1673862069062,44.04796274,1543.7,1543.6,0.00084546]
[1673862069851,39.12393186,1543.7,1543.6,0.00084546]
[1673862070002,44.04796274,1543.7,1543.6,0.00084546]
[1673862070743,39.12393186,1543.7,1543.6,0.00084546]
[1673862070975,38.63773186,1543.7,1543.6,0.00084546]
[1673862071363,14.42712508,1543.7,1543.6,0.00084546]
[1673862071574,10.20454,1543.7,1543.6,0.00084546]
[1673862090470,19.95526678,1543.7,1543.6,0.00084546]
[1673862090670,22.45526678,1543.7,1543.6,0.00084546]
[1673862090938,22.94146678,1543.7,1543.6,0.00084546]
[1673862091311,24.44346678,1543.7,1543.6,0.00084546]
[1673862091472,30.92140678,1543.7,1543.6,0.00084546]
[1673862091683,35.06212146,1543.7,1543.6,0.00084546]
[1673862093581,34.57592146,1543.7,1543.6,0.00084546]
[1673862095573,45.97789234,1543.7,1543.6,0.00084546]
[1673862096216,41.05386146,1543.7,1543.6,0.00084546]
[1673862097619,45.97789234,1543.7,1543.6,0.00084546]
[1673862099110,41.05386146,1543.7,1543.6,0.00084546]
[1673862100497,45.97789234,1543.7,1543.6,0.00084546]
[1673862100667,39.55186146,1543.7,1543.6,0.00084546]
[1673862101020,45.97489234,1543.7,1543.6,0.00084546]
[1673862108666,41.05086146,1543.7,1543.6,0.00084546]
[1673862108885,46.20489234,1543.7,1543.6,0.00084546]
[1673862109092,41.28086146,1543.7,1543.6,0.00084546]
[1673862109691,46.20489234,1543.7,1543.6,0.00084546]
[1673862110576,41.28086146,1543.7,1543.6,0.00084546]
[1673862111574,39.78186146,1543.7,1543.6,0.00084546]
[1673862111787,33.07392146,1543.7,1543.6,0.00084546]
[1673862112237,41.05086146,1543.7,1543.6,0.00084546]
[1673862114472,0.94936974,1543.6,1543.5,0.00082384]
[1673862114628,36.95169355,1543.6,1543.5,0.00082384]
[1673862116628,39.95169355,1543.6,1543.5,0.00082384]
[1673862119371,40.59803273,1543.6,1543.5,0.00082384]
[1673862119581,41.08423273,1543.6,1543.5,0.00082384]
[1673862120009,46.08423273,1543.6,1543.5,0.00082384]
[1673862120830,46.08186299,1543.6,1543.5,0.00068878]
[1673862121828,38.91385961,1543.6,1543.5,0.00068878]
[1673862122559,40.42285961,1543.6,1543.5,0.00068878]
[1673862125175,47.23685961,1543.6,1543.5,0.00068878]
[1673862125506,52.88319879,1543.6,1543.5,0.00068878]
[1673862129799,42.33049293,1543.6,1543.5,0.00068878]
[1673862130023,35.51649293,1543.6,1543.5,0.00068878]
[1673862130648,40.42285961,1543.6,1543.5,0.00068878]
[1673862132548,41.06919879,1543.6,1543.5,0.00068878]
[1673862134281,46.06919879,1543.6,1543.5,0.00068878]
[1673862137365,52.88319879,1543.6,1543.5,0.00068878]
[1673862138947,41.16283211,1543.6,1543.5,0.00068878]
[1673862139302,45.58299879,1543.6,1543.5,0.00068878]
[1673862139627,40.58299879,1543.6,1543.5,0.00068878]
[1673862140629,47.39699879,1543.6,1543.5,0.00068878]
[1673862140869,52.88319879,1543.6,1543.5,0.00068878]
[1673862142664,0.00228272,1543.5,1543.4,0.00090487]
[1673862142879,38.66745606,1543.5,1543.4,0.00090487]
[1673862143092,48.66305606,1543.5,1543.4,0.00090487]
[1673862144230,49.30939524,1543.5,1543.4,0.00090487]
[1673862146858,49.79559524,1543.5,1543.4,0.00090487]
[1673862147069,54.79559524,1543.5,1543.4,0.00090487]
[1673862149723,49.40302856,1543.5,1543.4,0.00090487]
[1673862151930,44.40302856,1543.5,1543.4,0.00090487]
[1673862153372,49.30939524,1543.5,1543.4,0.00090487]
[1673862153715,49.3072004,1543.5,1543.4,0.00090487]
[1673862159650,37.69205372,1543.5,1543.4,0.00090487]
[1673862160088,44.01069454,1543.5,1543.4,0.00090487]
[1673862160925,48.91706122,1543.5,1543.4,0.00090487]
[1673862161693,49.5634004,1543.5,1543.4,0.00090487]
[1673862161913,49.7934004,1543.5,1543.4,0.00090487]
[1673862163015,54.7934004,1543.5,1543.4,0.00090487]
[1673862164371,56.2954004,1543.5,1543.4,0.00090487]
[1673862165234,63.1094004,1543.5,1543.4,0.00090487]
[1673862165484,64.6164004,1543.5,1543.4,0.00090487]
[1673862166004,66.30887274,1543.5,1543.4,0.00090487]
[1673862166498,66.30887274,1543.5,1543.2,0.06568397]
[1673862166665,4.78178678,1543.3,1543.2,0.00068397]
[1673862166974,42.01433264,1543.3,1543.2,0.00068397]
[1673862167588,57.83293264,1543.3,1543.2,0.00068397]
[1673862168189,64.64693264,1543.3,1542.9,0.07337591]
[1673862168451,4.78178678,1543.0,1542.9,0.00037591]
[1673862168619,33.80813214,1543.0,1542.9,0.00037591]
[1673862168821,36.53813214,1543.0,1542.9,0.00037591]
[1673862169273,47.40103214,1543.0,1542.9,0.00037591]
[1673862169707,52.40103214,1543.0,1542.9,0.00037591]
[1673862170181,53.04737132,1543.0,1542.9,0.00037591]
[1673862170445,59.86137132,1543.0,1542.9,0.00037591]
[1673862170639,59.86137132,1543.0,1542.8,0.07826156]
[1673862170640,59.86137132,1543.0,1542.8,0.00063747]
[1673862170848,19.44516,1542.8,1542.7,0.08849304]
[1673862171026,31.65767346,1542.8,1542.7,0.00049304]
[1673862171236,29.98130678,1542.8,1542.7,0.00049304]
[1673862172653,9.03414678,1542.8,1542.7,0.00049304]
[1673862172824,8.80414678,1542.8,1542.7,0.00049304]
[1673862173037,2.53136,1542.8,1542.7,0.00049304]
[1673862173271,2.53136,1542.8,1542.7,0.65864477]
[1673862173443,2.53136,1542.8,1542.7,0.00049304]
[1673862176110,2.53136,1542.8,1542.7,1.50949304]
[1673862176500,2.53136,1542.8,1542.7,7.99163304]
[1673862180595,0.03136,1542.8,1542.7,20.95591304]
[1673862180809,2.5,1543.0,1542.7,23.21225377]
[1673862181038,2.5,1543.0,1542.8,14.47205]
[1673862182690,2.5,1543.0,1542.8,6.48138]
[1673862182902,2.5,1543.0,1542.7,14.46077304]
[1673862184008,2.5,1543.0,1542.7,7.97863304]
[1673862184181,7.56890178,1543.0,1542.7,7.97863304]
[1673862185849,7.56890178,1543.0,1542.7,6.48263304]
[1673862187439,7.56890178,1543.0,1542.7,0.00049304]
[1673862187643,3.27278678,1542.9,1542.7,0.00049304]
[1673862188310,3.27278678,1542.8,1542.7,0.00049304]
[1673862188992,7.25133846,1542.8,1542.7,0.00049304]
[1673862189205,4.25133846,1542.8,1542.7,0.00049304]
[1673862192489,13.23305846,1542.8,1542.7,0.00049304]
[1673862193944,23.46841846,1542.8,1542.7,0.00049304]
[1673862195004,23.95491846,1542.8,1542.7,0.00049304]
[1673862195201,26.95491846,1542.8,1542.7,0.00049304]
[1673862195827,38.57300514,1542.8,1542.7,0.00049304]
[1673862196042,33.66663846,1542.8,1542.7,0.00049304]
[1673862197045,20.47319846,1542.8,1542.7,0.00049304]
[1673862197351,19.00814678,1542.8,1542.7,0.00049304]
[1673862197542,16.00814678,1542.8,1542.7,0.00049304]
[1673862198774,16.00456286,1542.8,1542.7,0.00049304]
[1673862199404,12.73536,1542.8,1542.7,9.08863304]
[1673862199614,2.53136,1542.8,1542.7,15.57077304]
[1673862199855,2.53136,1542.8,1542.7,17.78592477]
[1673862200084,2.53136,1542.8,1542.7,9.08863304]
[1673862200682,2.53136,1542.8,1542.7,2.60649304]
[1673862200876,2.53136,1542.8,1542.7,1.50349304]
[1673862201085,2.53136,1542.8,1542.7,0.00049304]
[1673862202170,5.80414678,1542.8,1542.7,0.00049304]
[1673862202516,7.28269546,1542.8,1542.7,0.00049304]
[1673862202675,5.80414678,1542.8,1542.7,0.00049304]
[1673862202897,5.80414678,1542.8,1542.7,1.10349304]
[1673862203119,5.80414678,1542.8,1542.7,0.00049304]
[1673862214593,8.80414678,1542.8,1542.7,0.00049304]
[1673862215018,5.80414678,1542.8,1542.7,0.00049304]
[1673862215249,7.33133746,1542.8,1542.7,0.00049304]
[1673862220187,5.80414678,1542.8,1542.7,0.00049304]
[1673862223512,25.24930678,1542.8,1542.7,0.00049304]
[1673862223785,25.47930678,1542.8,1542.7,0.00049304]
[1673862224151,22.63656678,1542.8,1542.7,0.00049304]
[1673862228482,29.76462596,1542.8,1542.7,0.00049304]
[1673862228665,34.02022456,1542.8,1542.7,0.00049304]
[1673862228871,33.37388538,1542.8,1542.7,0.00049304]
[1673862229087,39.85560538,1542.8,1542.7,0.00049304]
[1673862230367,45.24847206,1542.8,1542.7,0.00049304]
[1673862230995,40.34210538,1542.8,1542.7,0.00049304]
[1673862231201,45.24847206,1542.8,1542.7,0.00049304]
[1673862231411,45.24847206,1542.8,1542.6,0.09849425]
[1673862231412,1.05541424,1542.7,1542.6,0.09849425]
[1673862231620,39.08017025,1542.7,1542.6,0.00049425]
[1673862231858,39.72650943,1542.7,1542.6,0.00049425]
[1673862232229,34.82014275,1542.7,1542.6,0.00049425]
[1673862232564,39.72650943,1542.7,1542.6,0.00049425]
[1673862233510,34.82014275,1542.7,1542.6,0.00049425]
[1673862233722,39.72650943,1542.7,1542.6,0.00049425]
[1673862234167,34.82014275,1542.7,1542.6,0.00049425]
[1673862234481,39.72650943,1542.7,1542.6,0.00049425]
[1673862235007,34.82014275,1542.7,1542.6,0.00049425]
[1673862235428,39.72650943,1542.7,1542.6,0.00049425]
[1673862236283,46.54050943,1542.7,1542.6,0.00049425]
[1673862236481,39.72650943,1542.7,1542.6,0.00049425]
[1673862237270,34.59014275,1542.7,1542.6,0.00049425]
[1673862238515,34.82014275,1542.7,1542.6,0.00049425]
[1673862240581,17.93402357,1542.7,1542.6,1.10349425]
[1673862240914,3.79306102,1542.7,1542.6,1.10349425]
[1673862241138,3.30656102,1542.7,1542.6,0.00049425]
[1673862242176,9.78870102,1542.7,1542.6,0.00049425]
[1673862242581,38.11968688,1542.7,1542.4,0.09503402]
[1673862242795,4.77578678,1542.5,1542.4,3.402e-05]
[1673862243155,19.50010678,1542.5,1542.4,3.402e-05]
[1673862244677,22.00010678,1542.5,1542.4,3.402e-05]
[1673862244891,27.55281264,1542.5,1542.4,3.402e-05]
[1673862245118,40.85210991,1542.5,1542.4,3.402e-05]
[1673862245445,50.88030991,1542.5,1542.4,3.402e-05]
[1673862245640,51.36680991,1542.5,1542.4,3.402e-05]
[1673862247301,57.87680991,1542.5,1542.4,3.402e-05]
[1673862247868,64.69080991,1542.5,1542.4,3.402e-05]
[1673862249335,59.78444323,1542.5,1542.4,3.402e-05]
[1673862249599,58.28444323,1542.5,1542.4,3.402e-05]
[1673862249877,56.77444323,1542.5,1542.4,3.402e-05]
[1673862250040,49.96044323,1542.5,1542.4,3.402e-05]
[1673862250246,49.31410405,1542.5,1542.4,3.402e-05]
[1673862250510,46.31410405,1542.5,1542.4,3.402e-05]
[1673862250823,28.79830678,1542.5,1542.4,3.402e-05]
[1673862251026,28.79830678,1542.5,1542.4,1.10303402]
[1673862251191,12.28712678,1542.5,1542.4,1.10303402]
[1673862251398,12.28712678,1542.5,1542.4,3.402e-05]
[1673862251613,23.15952678,1542.5,1542.4,3.402e-05]
[1673862252288,16.67654678,1542.5,1542.4,1.10303402]
[1673862252501,3.30414678,1542.5,1542.4,1.21333742]
[1673862252666,0.03136,1542.5,1542.4,14.18013742]
[1673862252880,0.00241424,1542.7,1542.4,14.18013742]
[1673862253081,0.00241424,1542.7,1542.6,1.499]
[1673862253366,0.00241424,1542.7,1542.6,8.779738]
[1673862253501,0.00241424,1542.7,1542.5,6.48278]
[1673862254757,0.00241424,1542.7,1542.5,7.98478]
[1673862255230,3.27278678,1542.6,1542.5,1.502]
[1673862256975,3.27278678,1542.6,1542.4,23.90225402]
[1673862257289,3.27278678,1542.6,1542.4,7.99015402]
[1673862260696,3.27278678,1542.5,1542.4,3.402e-05]
[1673862260853,3.30414678,1542.5,1542.4,3.402e-05]
[1673862263092,0.03136,1542.5,1542.4,1.10303402]
[1673862263269,0.03136,1542.5,1542.4,15.57983402]
[1673862265203,0.03136,1542.5,1542.4,22.06323402]
[1673862265693,0.03136,1542.5,1542.4,24.26955742]
[1673862267000,0.02743083,1542.5,1542.4,24.26955742]
[1673862271208,2.50241424,1542.7,1542.4,24.26955742]
[1673862271948,2.50241424,1542.7,1542.5,1.504]
[1673862272135,2.50241424,1542.7,1542.6,12.96512]
[1673862273577,5.77520102,1542.7,1542.4,14.46657402]
[1673862273828,7.68936112,1542.7,1542.4,14.46657402]
[1673862275935,7.68936112,1542.7,1542.4,12.96657402]
[1673862276676,3.27278678,1542.6,1542.4,6.48317402]
[1673862276830,3.27278678,1542.6,1542.4,3.402e-05]
[1673862277048,3.27278678,1542.5,1542.4,3.402e-05]
[1673862277273,3.86142546,1542.5,1542.4,3.402e-05]
[1673862277584,30.36907132,1542.5,1542.4,3.402e-05]
[1673862278008,25.46270464,1542.5,1542.4,3.402e-05]
[1673862278315,34.90256546,1542.5,1542.4,3.402e-05]
[1673862279906,40.40733521,1542.5,1542.4,3.402e-05]
[1673862280067,43.89383521,1542.5,1542.4,3.402e-05]
[1673862280875,39.03540464,1542.5,1542.4,3.402e-05]
[1673862281106,37.52940464,1542.5,1542.4,3.402e-05]
[1673862281283,24.56344464,1542.5,1542.4,3.402e-05]
[1673862282347,23.91710546,1542.5,1542.4,3.402e-05]
[1673862283067,13.94762546,1542.5,1542.4,1.10303402]
[1673862283273,3.30414678,1542.5,1542.4,1.10303402]
[1673862284763,3.30414678,1542.5,1542.4,3.402e-05]
[1673862285590,3.30414678,1542.5,1542.4,7.58643402]
[1673862285821,0.03136,1542.5,1542.4,14.06983402]
[1673862291365,0.02868482,1542.5,1542.4,14.06983402]
[1673862291576,0.02868482,1542.5,1542.4,16.12516542]
[1673862292217,0.02868482,1542.5,1542.4,14.06983402]
[1673862293418,0.02868482,1542.5,1542.4,20.55323402]
[1673862295045,0.02868482,1542.5,1542.4,22.06123402]
[1673862295215,0.00241424,1542.7,1542.4,22.06123402]
[1673862295370,0.00241424,1542.7,1542.5,1.503]
[1673862295750,0.00241424,1542.7,1542.6,19.59798]
[1673862302639,12.2937,1542.9,1542.6,19.59798]
[1673862302970,15.56648678,1542.9,1542.6,19.59798]
[1673862308956,0.4864,1543.0,1542.6,21.09698]
[1673862309171,3.75918678,1543.0,1542.6,21.09698]
[1673862309679,13.97678678,1543.0,1542.6,21.09698]
[1673862311082,16.94541546,1543.0,1542.6,20.94668]
[1673862311251,17.43181546,1543.0,1542.6,20.94668]
[1673862311919,17.43181546,1543.0,1542.6,19.44768]
[1673862313462,14.46318678,1543.0,1542.6,19.44768]
[1673862316328,14.45948611,1543.0,1542.6,19.44768]
[1673862318536,13.97308611,1543.0,1542.6,19.44768]
[1673862321433,10.704,1543.0,1542.6,19.44768]
[1673862321770,10.704,1543.0,1542.8,1.51]